bitfinex/quotes_BTCUSD_20240820
["timestamp","ask_amount","ask_price","bid_price","bid_amount"]
[1724165682998,0.133911,59741.0,59738.0,0.04657]
[1724165683209,0.267813,59743.0,59738.0,0.04657]
[1724165683637,0.71252116,59747.0,59738.0,0.04657]
[1724165683638,0.4368,59740.0,59738.0,0.04657]
[1724165683845,0.4368,59740.0,59727.0,0.53544]
[1724165684047,0.133932,59732.0,59727.0,0.4015]
[1724165684247,0.4368,59733.0,59727.0,0.535442]
[1724165684662,0.4368,59733.0,59728.0,0.13394]
[1724165685274,0.133935,59731.0,59727.0,0.4015]
[1724165685480,0.13392,59737.0,59731.0,0.133933]
[1724165685684,0.13392,59737.0,59732.0,0.0438639]
[1724165686090,0.133926,59735.0,59732.0,0.04051602]
[1724165686311,0.133926,59735.0,59729.0,0.133937]
[1724165686523,0.133923,59736.0,59729.0,0.133937]
[1724165687101,0.133923,59736.0,59730.0,0.13728392]
[1724165687851,0.133925,59735.0,59730.0,0.00334792]
[1724165688050,0.267834,59739.0,59730.0,0.00334792]
[1724165688280,0.267834,59739.0,59731.0,0.00334782]
[1724165688431,0.267834,59739.0,59732.0,0.04051628]
[1724165688649,0.267845,59737.0,59732.0,0.04051628]
[1724165688812,0.4364,59738.0,59727.0,0.4015]
[1724165689013,0.4364,59738.0,59729.0,0.133938]
[1724165689014,0.133925,59735.0,59729.0,0.133938]
[1724165689211,0.133923,59736.0,59730.0,0.133935]
[1724165689414,0.267842,59737.0,59728.0,0.40516488]
[1724165689415,0.133925,59735.0,59728.0,0.40516488]
[1724165689893,0.133925,59735.0,59729.0,0.133938]
[1724165690326,0.133925,59735.0,59730.0,0.00334795]
[1724165690772,0.133927,59734.0,59730.0,0.00334795]
[1724165690972,0.133927,59734.0,59727.0,0.53544]
[1724165690973,0.267848,59736.0,59731.0,0.0538788]
[1724165691203,0.133925,59735.0,59731.0,0.0538788]
[1724165691606,0.133927,59734.0,59731.0,0.0538788]
[1724165691786,0.133925,59735.0,59731.0,0.0538788]
[1724165692015,0.133925,59735.0,59732.0,0.01878158]
[1724165692215,0.133927,59734.0,59732.0,0.01878158]
[1724165693165,0.133927,59734.0,59728.0,0.133939]
[1724165694074,0.133932,59732.0,59727.0,0.4015]
[1724165694267,0.267854,59734.0,59727.0,0.535441]
[1724165694632,0.133929,59733.0,59727.0,0.535441]
[1724165694768,0.49229154,59732.0,59727.0,0.535441]
[1724165694984,0.133974,59713.0,59712.0,0.000823]
[1724165695224,0.133974,59713.0,59701.0,0.000823]
[1724165695225,0.401995,59702.0,59701.0,0.000823]
[1724165695429,0.401995,59702.0,59698.0,0.00823]
[1724165695430,0.402016,59699.0,59698.0,0.00823]
[1724165695633,1.808038,59699.0,59698.0,0.00823]
[1724165695834,1.97204098,59699.0,59698.0,0.00823]
[1724165696029,2.55284098,59699.0,59698.0,0.00823]
[1724165696662,2.56240396,59699.0,59698.0,0.00823]
[1724165697479,2.562404,59699.0,59698.0,0.00823]
[1724165698107,2.55284098,59699.0,59698.0,0.00823]
[1724165698319,1.061627,59699.0,59698.0,0.00823]
[1724165698644,0.670027,59699.0,59698.0,0.00823]
[1724165699284,0.938038,59699.0,59698.0,0.00823]
[1724165699701,0.670027,59699.0,59698.0,0.00823]
[1724165700347,0.938038,59699.0,59698.0,0.00823]
[1724165700962,1.10204098,59699.0,59698.0,0.00823]
[1724165701160,0.938038,59699.0,59698.0,0.00823]
[1724165701456,1.10204098,59699.0,59698.0,0.00823]
[1724165701801,1.37005198,59699.0,59698.0,0.00823]
[1724165702493,1.74565198,59699.0,59698.0,0.00823]
[1724165704292,2.86155198,59699.0,59698.0,0.00823]
[1724165704488,2.86455198,59699.0,59698.0,0.00823]
[1724165704683,2.04155198,59699.0,59698.0,0.00823]
[1724165705338,2.33255198,59699.0,59698.0,0.00823]
[1724165705540,2.33255198,59699.0,59675.0,0.000824]
[1724165705541,0.938147,59692.0,59675.0,0.000824]
[1724165705765,3.01629198,59692.0,59675.0,0.000824]
[1724165705937,3.11729198,59692.0,59675.0,0.000824]
[1724165706137,3.38533398,59692.0,59675.0,0.000824]
[1724165706342,3.38733398,59692.0,59675.0,0.000824]
[1724165706604,0.001,59683.0,59675.0,0.000824]
[1724165706733,1.3675915,59676.0,59675.0,0.000824]
[1724165706935,1.0994775,59676.0,59675.0,0.000824]
[1724165707135,1.3675915,59676.0,59675.0,0.000824]
[1724165707347,1.53159448,59676.0,59675.0,0.000824]
[1724165708786,0.6629775,59676.0,59675.0,0.000824]
[1724165709572,0.9310915,59676.0,59675.0,0.000824]
[1724165709756,0.6629775,59676.0,59675.0,0.000824]
[1724165711735,0.1267495,59676.0,59675.0,0.000824]
[1724165711946,0.4365,59690.0,59676.0,0.1923]
[1724165712157,0.134054,59678.0,59676.0,0.1923]
[1724165712325,0.134051,59679.0,59676.0,0.1923]
[1724165712530,0.268031,59695.0,59676.0,0.1923]
[1724165712531,0.134052,59678.0,59676.0,0.1923]
[1724165712769,0.134049,59680.0,59676.0,0.1923]
[1724165712943,0.134054,59677.0,59676.0,0.1923]
[1724165713345,0.402171,59676.0,59675.0,0.000824]
[1724165713950,0.134057,59676.0,59675.0,0.000824]
[1724165714449,0.536196,59680.0,59675.0,0.000824]
[1724165714450,0.268098,59680.0,59675.0,0.000824]
[1724165714899,0.134057,59676.0,59675.0,0.000824]
[1724165715278,0.670285,59676.0,59675.0,0.000824]
[1724165715483,1.374899,59676.0,59675.0,0.000824]
[1724165715839,1.106785,59676.0,59675.0,0.000824]
[1724165715975,1.27078798,59676.0,59675.0,0.000824]
[1724165716176,2.25890198,59676.0,59675.0,0.000824]
[1724165716655,2.29785098,59676.0,59675.0,0.000824]
[1724165716792,3.04081598,59676.0,59675.0,0.000824]
[1724165717811,3.04181598,59676.0,59675.0,0.000824]
[1724165718042,3.04081598,59676.0,59675.0,0.000824]
[1724165718813,2.77270198,59676.0,59675.0,0.000824]
[1724165719273,1.34808798,59676.0,59675.0,0.000824]
[1724165719400,0.402171,59676.0,59675.0,0.000824]
[1724165719851,0.402171,59676.0,59675.0,0.0207164]
[1724165720056,0.402171,59676.0,59675.0,0.000824]
[1724165720382,0.55056,59688.0,59675.0,0.000824]
[1724165720383,0.3765,59689.0,59675.0,0.550883]
[1724165720701,0.134056,59677.0,59675.0,0.416824]
[1724165720912,0.402171,59676.0,59675.0,0.000824]
[1724165721265,0.134057,59676.0,59675.0,0.0207164]
[1724165722084,0.268085,59683.0,59675.0,0.0207164]
[1724165722283,0.134044,59682.0,59676.0,0.13740706]
[1724165722483,0.268079,59684.0,59677.0,0.04262435]
[1724165722682,0.134044,59682.0,59677.0,0.04262435]
[1724165722890,0.134044,59682.0,59678.0,0.02470423]
[1724165723099,0.268083,59683.0,59678.0,0.02470423]
[1724165723359,0.134046,59681.0,59675.0,0.134882]
[1724165723562,0.268083,59683.0,59675.0,0.000824]
[1724165723563,0.268088,59682.0,59675.0,0.000824]
[1724165723767,0.134049,59680.0,59675.0,0.000824]
[1724165724008,0.268087,59682.0,59676.0,0.0466853]
[1724165724222,0.402132,59682.0,59676.0,0.0466853]
[1724165724449,0.134054,59677.0,59676.0,0.0466853]
[1724165724670,0.670285,59676.0,59675.0,0.000824]
[1724165726188,1.768399,59676.0,59675.0,0.000824]
[1724165726406,1.94196739,59676.0,59675.0,0.000824]
[1724165726827,2.31108139,59676.0,59675.0,0.000824]
[1724165727074,2.04196803,59676.0,59675.0,0.000824]
[1724165727281,2.05104173,59676.0,59675.0,0.000824]
[1724165727486,2.05004173,59676.0,59675.0,0.000824]
[1724165728511,1.22004173,59676.0,59675.0,0.000824]
[1724165728840,1.12004173,59676.0,59675.0,0.000824]
[1724165729044,1.11047568,59676.0,59675.0,0.000824]
[1724165729629,1.1200408,59676.0,59675.0,0.000824]
[1724165731053,1.11047568,59676.0,59675.0,0.000824]
[1724165731280,0.9464727,59676.0,59675.0,0.000824]
[1724165731559,0.9464727,59676.0,59675.0,0.197124]
[1724165731560,0.402171,59676.0,59675.0,0.197124]
[1724165731724,0.3831,59688.0,59675.0,0.197124]
[1724165731725,0.38267621,59688.0,59675.0,0.2547764]
[1724165731942,0.49229154,59685.0,59675.0,0.2547764]
[1724165732142,0.402171,59676.0,59675.0,0.2547764]
[1724165732330,0.83428798,59676.0,59675.0,0.000824]
[1724165732530,1.53890198,59676.0,59675.0,0.000824]
[1724165732737,1.54846723,59676.0,59675.0,0.000824]
[1724165732881,1.53890198,59676.0,59675.0,0.000824]
[1724165733079,1.54846737,59676.0,59675.0,0.000824]
[1724165734059,0.84385337,59676.0,59675.0,0.000824]
[1724165734219,0.83428798,59676.0,59675.0,0.000824]
[1724165734619,1.10240198,59676.0,59675.0,0.000824]
[1724165734828,0.67985011,59676.0,59675.0,0.000824]
[1724165735031,0.670285,59676.0,59675.0,0.000824]
[1724165736188,0.402171,59676.0,59675.0,0.000824]
[1724165736415,0.670285,59676.0,59675.0,0.000824]
[1724165736785,0.402171,59676.0,59675.0,0.000824]
[1724165738311,0.00826957,59681.0,59675.0,0.000824]
[1724165738312,0.134046,59681.0,59676.0,0.539256]
[1724165738516,0.00779309,59687.0,59677.0,0.054008]
[1724165738719,0.134051,59679.0,59677.0,0.054008]
[1724165738932,0.670262,59678.0,59677.0,0.054008]
[1724165739174,0.134057,59676.0,59675.0,0.000824]
[1724165739590,0.268101,59679.0,59675.0,0.000824]
[1724165739793,0.134053,59678.0,59675.0,0.000824]
[1724165740002,0.268077,59685.0,59676.0,0.5836889]
[1724165740210,0.134042,59683.0,59677.0,0.13740492]
[1724165740656,0.134045,59682.0,59677.0,0.00335092]
[1724165740876,0.067116,59694.0,59677.0,0.00335092]
[1724165740877,0.134035,59686.0,59678.0,0.268102]
[1724165741079,0.0009064,59688.0,59679.0,0.13740081]
[1724165741080,0.134039,59684.0,59679.0,0.13740081]
[1724165741284,0.0009064,59688.0,59676.0,0.83831]
[1724165741488,0.402111,59685.0,59679.0,0.134049]
[1724165742105,0.134036,59686.0,59680.0,0.134047]
[1724165742310,0.0009064,59688.0,59680.0,0.00335086]
[1724165742515,0.0009064,59688.0,59681.0,0.134045]
[1724165742516,0.134034,59686.0,59681.0,0.134045]
[1724165742724,0.134033,59687.0,59681.0,0.134046]
[1724165742943,0.134034,59686.0,59682.0,0.0670244]
[1724165743401,0.134033,59687.0,59682.0,0.0670244]
[1724165743606,0.2689694,59688.0,59682.0,0.0670244]
[1724165743807,0.2689694,59688.0,59683.0,0.02010714]
[1724165744016,0.134033,59687.0,59683.0,0.02010714]
[1724165744246,0.1349364,59688.0,59683.0,0.02010714]
[1724165744448,0.0009064,59688.0,59683.0,0.02010714]
[1724165744656,0.0009064,59688.0,59681.0,0.134045]
[1724165744657,0.134033,59687.0,59681.0,0.134045]
[1724165744863,0.134033,59687.0,59682.0,0.134043]
[1724165745479,0.1349364,59688.0,59682.0,0.134043]
[1724165745680,0.1349364,59688.0,59681.0,0.134045]
[1724165745681,0.134033,59687.0,59681.0,0.134045]
[1724165745798,0.134033,59687.0,59682.0,0.0402145]
[1724165745995,0.134033,59687.0,59682.0,0.1742575]
[1724165746424,0.0009064,59688.0,59683.0,0.134039]
[1724165746623,0.0009064,59688.0,59682.0,0.0402145]
[1724165746624,0.1349364,59688.0,59682.0,0.0402145]
[1724165746832,0.1349364,59688.0,59683.0,0.03083145]
[1724165747476,0.134033,59687.0,59683.0,0.03083145]
[1724165747676,0.134035,59686.0,59683.0,0.03083145]
[1724165748441,0.3498,59684.0,59676.0,0.5702]
[1724165748810,0.134042,59683.0,59677.0,0.134054]
[1724165748950,0.134042,59683.0,59676.0,0.5702]
[1724165748951,0.134042,59683.0,59678.0,0.134052]
[1724165749152,0.134042,59683.0,59676.0,0.838313]
[1724165749378,0.134042,59683.0,59677.0,0.134054]
[1724165749698,0.483839,59684.0,59678.0,0.134052]
[1724165749897,0.483839,59684.0,59676.0,0.5702]
[1724165749898,0.483839,59684.0,59683.0,0.000824]
[1724165750140,0.3498,59684.0,59683.0,0.000824]
[1724165750342,0.483839,59684.0,59683.0,0.0143113]
[1724165750588,0.483839,59684.0,59683.0,0.000824]
[1724165750797,0.3498,59684.0,59683.0,0.000824]
[1724165751415,0.483839,59684.0,59683.0,0.000824]
[1724165751837,0.751917,59684.0,59683.0,0.000824]
[1724165752048,0.3508,59684.0,59683.0,0.012824]
[1724165752671,0.3498,59684.0,59683.0,0.000824]
[1724165752880,0.3498,59684.0,59683.0,0.007824]
[1724165752881,0.3508,59684.0,59683.0,0.007824]
[1724165753123,0.484839,59684.0,59683.0,0.007824]
[1724165753333,0.752917,59684.0,59683.0,0.007824]
[1724165753540,2.129073,59684.0,59683.0,0.007824]
[1724165754153,1.859995,59684.0,59683.0,0.000824]
[1724165754588,1.860995,59684.0,59683.0,0.012824]
[1724165754996,1.859995,59684.0,59683.0,0.000824]
[1724165755200,1.859995,59684.0,59683.0,0.007824]
[1724165755403,1.020995,59684.0,59683.0,0.007824]
[1724165755821,1.019995,59684.0,59683.0,0.000824]
[1724165756024,1.023995,59684.0,59683.0,0.000824]
[1724165756229,2.16607598,59684.0,59683.0,0.000824]
[1724165756855,1.18799798,59684.0,59683.0,0.000824]
[1724165757682,0.755917,59684.0,59683.0,0.000824]
[1724165757889,1.023995,59684.0,59683.0,0.000824]
[1724165758095,1.18799798,59684.0,59683.0,0.000824]
[1724165758514,2.61327598,59684.0,59683.0,0.000824]
[1724165758929,2.88135398,59684.0,59683.0,0.000824]
[1724165759325,2.61327598,59684.0,59683.0,0.000824]
[1724165759532,2.62284024,59684.0,59683.0,0.000824]
[1724165759718,2.61327598,59684.0,59683.0,0.000824]
[1724165759919,1.019995,59684.0,59683.0,0.000824]
[1724165760248,1.019995,59684.0,59683.0,0.004824]
[1724165760865,1.99399798,59684.0,59683.0,0.004824]
[1724165761080,2.26207598,59684.0,59683.0,0.004824]
[1724165761293,2.64357598,59684.0,59683.0,0.004824]
[1724165761519,2.64357598,59684.0,59683.0,0.000824]
[1724165761520,2.82907598,59684.0,59683.0,0.000824]
[1724165762030,2.82907598,59684.0,59683.0,0.001824]
[1724165762497,2.83864023,59684.0,59683.0,0.000824]
[1724165762737,1.94714023,59684.0,59683.0,0.000824]
[1724165763445,0.406117,59684.0,59683.0,0.000824]
[1724165764147,0.755917,59684.0,59683.0,0.000824]
[1724165764356,1.023995,59684.0,59683.0,0.000824]
[1724165765203,1.833995,59684.0,59683.0,0.000824]
[1724165765405,1.829995,59684.0,59683.0,0.000824]
[1724165765632,1.019995,59684.0,59683.0,0.000824]
[1724165766670,1.019995,59684.0,59683.0,0.002824]
[1724165767221,1.288073,59684.0,59683.0,0.002824]
[1724165767427,2.69623972,59684.0,59683.0,0.002824]
[1724165768267,2.98293972,59684.0,59683.0,0.002824]
[1724165768469,2.98393972,59684.0,59683.0,0.002824]
[1724165768695,2.98593972,59684.0,59683.0,0.002824]
[1724165768896,2.98293972,59684.0,59683.0,0.002824]
[1724165769105,2.98393972,59684.0,59683.0,0.002824]
[1724165769310,2.98293972,59684.0,59683.0,0.000824]
[1724165769734,2.98693972,59684.0,59683.0,0.000824]
[1724165770609,3.25501772,59684.0,59683.0,0.000824]
[1724165770927,2.97737598,59684.0,59683.0,0.000824]
[1724165771104,2.98694054,59684.0,59683.0,0.000824]
[1724165771488,2.98694049,59684.0,59683.0,0.000824]
[1724165771694,3.25501849,59684.0,59683.0,0.000824]
[1724165771897,2.98694049,59684.0,59683.0,0.000824]
[1724165772127,2.80024049,59684.0,59683.0,0.000824]
[1724165773149,2.80124049,59684.0,59683.0,0.000824]
[1724165773608,3.07131849,59684.0,59683.0,0.000824]
[1724165774231,3.07151849,59684.0,59683.0,0.000824]
[1724165775052,3.07151925,59684.0,59683.0,0.000824]
[1724165775250,3.06751925,59684.0,59683.0,0.000824]
[1724165775659,3.08051925,59684.0,59683.0,0.001824]
[1724165776052,3.06751925,59684.0,59683.0,0.000824]
[1724165776253,3.06751925,59684.0,59675.0,0.000824]
[1724165776254,1.790313,59676.0,59675.0,0.000824]
[1724165776529,3.19588125,59676.0,59675.0,0.000824]
[1724165776739,0.938462,59672.0,59671.0,0.0002]
[1724165776944,2.22643025,59672.0,59671.0,0.0002]
[1724165777134,2.49456225,59672.0,59671.0,0.0002]
[1724165777334,2.49556225,59672.0,59671.0,0.0002]
[1724165777564,2.59456225,59672.0,59671.0,0.0002]
[1724165778993,2.87166785,59672.0,59671.0,0.0002]
[1724165779320,2.87666785,59672.0,59671.0,0.0002]
[1724165779526,2.87366785,59672.0,59671.0,0.0002]
[1724165780079,2.60553585,59672.0,59671.0,0.0002]
[1724165780436,2.60253585,59672.0,59671.0,0.0002]
[1724165781078,2.61553585,59672.0,59671.0,0.0012]
[1724165781482,0.013,59672.0,59671.0,0.1986]
[1724165781806,0.013,59672.0,59671.0,0.647843]
[1724165782211,0.013,59672.0,59671.0,1.341183]
[1724165782378,0.013,59672.0,59671.0,1.073047]
[1724165782606,0.134046,59681.0,59672.0,0.268129]
[1724165782802,0.134046,59681.0,59673.0,0.04927798]
[1724165783006,0.134046,59681.0,59673.0,0.18334098]
[1724165783619,0.134049,59680.0,59673.0,0.04927798]
[1724165783821,0.134049,59680.0,59671.0,0.0002]
[1724165783822,0.35,59674.0,59671.0,0.0002]
[1724165784063,0.67033,59672.0,59671.0,0.0002]
[1724165784262,1.68433298,59672.0,59671.0,0.0002]
[1724165784426,1.95246498,59672.0,59671.0,0.0002]
[1724165784834,1.10246498,59672.0,59671.0,0.0002]
[1724165786090,1.10246498,59672.0,59671.0,0.0012]
[1724165786301,0.402198,59672.0,59671.0,0.0012]
[1724165786498,0.134066,59672.0,59671.0,0.3946]
[1724165786702,0.134066,59672.0,59671.0,0.435707]
[1724165786933,0.140066,59672.0,59671.0,0.436707]
[1724165787284,0.408198,59672.0,59671.0,0.436707]
[1724165787631,0.402198,59672.0,59671.0,0.435707]
[1724165787850,0.67033,59672.0,59671.0,0.435707]
[1724165788408,0.406198,59672.0,59671.0,0.435707]
[1724165789287,0.406198,59672.0,59671.0,0.001024]
[1724165789288,0.67433,59672.0,59671.0,0.001024]
[1724165789713,1.10646498,59672.0,59671.0,0.001024]
[1724165789905,2.14459698,59672.0,59671.0,0.001024]
[1724165790061,1.10646498,59672.0,59671.0,0.001024]
[1724165791274,2.13459698,59672.0,59671.0,0.001024]
[1724165791475,2.44056359,59672.0,59671.0,0.001024]
[1724165791677,2.99314237,59672.0,59671.0,0.001024]
[1724165791878,2.82916359,59672.0,59671.0,0.001024]
[1724165792515,3.09729559,59672.0,59671.0,0.001024]
[1724165792836,0.670362,59669.0,59668.0,0.00823]
[1724165793041,2.45422159,59669.0,59668.0,0.00823]
[1724165793241,2.72236659,59669.0,59668.0,0.00823]
[1724165793451,0.938619,59662.0,59661.0,0.00823]
[1724165793627,2.47426559,59662.0,59661.0,0.00823]
[1724165793831,2.84544259,59662.0,59661.0,0.00823]
[1724165794088,3.02047598,59662.0,59661.0,0.00823]
[1724165794290,3.03104487,59662.0,59661.0,0.00823]
[1724165794472,1.556858,59654.0,59653.0,0.00823]
[1724165794677,2.76486098,59654.0,59653.0,0.00823]
[1724165795448,2.76786098,59654.0,59653.0,0.00823]
[1724165795913,2.77743118,59654.0,59653.0,0.00823]
[1724165796100,2.88843118,59654.0,59653.0,0.00923]
[1724165796364,3.03976031,59654.0,59653.0,0.00923]
[1724165796476,2.88843118,59654.0,59653.0,0.00923]
[1724165796684,2.89743118,59654.0,59653.0,0.00923]
[1724165797700,2.89843118,59654.0,59653.0,0.00923]
[1724165797874,3.36344418,59654.0,59653.0,0.00923]
[1724165798113,0.004,59652.0,59649.0,0.00823]
[1724165798319,0.004,59652.0,59638.0,0.00823]
[1724165798320,1.432067,59642.0,59638.0,0.00823]
[1724165798544,2.89260398,59642.0,59638.0,0.00823]
[1724165799156,2.89360398,59642.0,59638.0,0.00823]
[1724165799329,2.89360398,59642.0,59631.0,0.0002]
[1724165799330,1.288992,59632.0,59631.0,0.0002]
[1724165799538,3.01738043,59632.0,59631.0,0.0002]
[1724165799753,3.10580698,59632.0,59631.0,0.0002]
[1724165799961,3.37611898,59632.0,59631.0,0.0002]
[1724165800190,3.57291898,59632.0,59631.0,0.0002]
[1724165800393,3.73689776,59632.0,59631.0,0.0002]
[1724165800594,3.57291898,59632.0,59631.0,0.0002]
[1724165801007,0.402562,59618.0,59617.0,0.01]
[1724165801216,0.91646498,59618.0,59617.0,0.4195]
[1724165801417,2.17321498,59618.0,59617.0,0.01]
[1724165802029,0.671005,59612.0,59611.0,0.00843]
[1724165802248,2.25330998,59612.0,59611.0,0.00843]
[1724165802459,2.25330998,59612.0,59600.0,0.0034]
[1724165802460,0.671117,59602.0,59600.0,0.0034]
[1724165802664,0.671127,59601.0,59600.0,0.0034]
[1724165802863,0.402703,59597.0,59596.0,0.0049873]
[1724165803061,1.18507498,59597.0,59596.0,0.0049873]
[1724165803276,1.18507498,59597.0,59578.0,0.281555]
[1724165803277,0.1885,59596.0,59578.0,0.013]
[1724165803486,0.4118,59586.0,59578.0,0.013]
[1724165803692,0.402825,59579.0,59578.0,0.013]
[1724165804099,0.49229154,59593.0,59578.0,0.013]
[1724165804302,0.00854098,59586.0,59578.0,0.013]
[1724165804501,0.16400298,59585.0,59578.0,0.013]
[1724165804717,0.134275,59579.0,59578.0,0.013]
[1724165804918,0.368512,59588.0,59578.0,0.013]
[1724165804919,0.013,59586.0,59578.0,0.013]
[1724165805134,0.14726,59586.0,59578.0,0.013]
[1724165805327,0.26400298,59585.0,59578.0,0.013]
[1724165805492,0.53252998,59585.0,59578.0,0.013]
[1724165805667,0.26855,59579.0,59578.0,0.013]
[1724165805888,0.402825,59579.0,59578.0,0.013]
[1724165806087,1.20392798,59579.0,59578.0,0.013]
[1724165806291,0.93537798,59579.0,59578.0,0.013]
[1724165806488,0.771375,59579.0,59578.0,0.013]
[1724165806687,0.502825,59579.0,59578.0,0.013]
[1724165806888,0.1,59579.0,59578.0,0.013]
[1724165807506,0.368533,59583.0,59578.0,0.013]
[1724165807865,0.00853891,59584.0,59578.0,0.013]
[1724165808070,0.134273,59580.0,59578.0,0.013]
[1724165808275,0.005,59579.0,59578.0,0.013]
[1724165808510,0.29911786,59579.0,59578.0,0.013]
[1724165808710,0.404825,59579.0,59578.0,0.013]
[1724165808880,0.843525,59579.0,59578.0,0.013]
[1724165809109,0.943525,59579.0,59578.0,0.013]
[1724165809287,0.941525,59579.0,59578.0,0.013]
[1724165809486,0.674975,59579.0,59578.0,0.013]
[1724165809705,0.943525,59579.0,59578.0,0.013]
[1724165809862,0.674975,59579.0,59578.0,0.013]
[1724165810107,0.941525,59579.0,59578.0,0.013]
[1724165811348,0.335764,59584.0,59580.0,0.3801]
[1724165811555,0.134266,59583.0,59580.0,0.3801]
[1724165811774,0.4387,59586.0,59580.0,0.3801]
[1724165811899,0.134264,59584.0,59580.0,0.3801]
[1724165812113,0.0009064,59582.0,59580.0,0.3801]
[1724165812948,0.13427,59581.0,59580.0,0.3801]
[1724165813194,0.0009064,59582.0,59580.0,0.3801]
[1724165813436,0.0009064,59582.0,59581.0,0.0393924]
[1724165814146,0.0009064,59582.0,59580.0,0.3801]
[1724165814147,0.13427,59581.0,59580.0,0.3801]
[1724165814380,0.16490938,59582.0,59581.0,0.1864]
[1724165814381,0.0009064,59582.0,59581.0,0.1864]
[1724165814799,0.4037114,59582.0,59581.0,0.1864]
[1724165815001,0.4057114,59582.0,59581.0,0.1864]
[1724165815237,0.0009064,59582.0,59581.0,0.2064224]
[1724165816097,0.70198338,59582.0,59581.0,0.001]
[1724165816295,0.1351744,59582.0,59581.0,0.001]
[1724165816426,0.0009064,59582.0,59581.0,0.3981]
[1724165816851,0.0009064,59582.0,59581.0,0.981711]
[1724165817051,0.134253,59589.0,59584.0,0.134263]
[1724165817629,0.268502,59590.0,59581.0,0.5789]
[1724165817834,0.134255,59589.0,59584.0,0.134264]
[1724165818038,0.134255,59589.0,59581.0,0.5789]
[1724165818039,0.134268,59582.0,59581.0,0.5789]
[1724165818267,0.00083988,59588.0,59581.0,0.6381724]
[1724165818521,0.268532,59584.0,59581.0,0.6381724]
[1724165818726,0.268524,59585.0,59581.0,0.2410724]
[1724165818879,0.2685,59591.0,59581.0,0.1838]
[1724165819082,0.134256,59588.0,59583.0,0.134264]
[1724165819288,0.134256,59588.0,59581.0,0.318069]
[1724165819289,0.268511,59588.0,59581.0,0.318069]
[1724165819487,0.26851,59588.0,59582.0,0.0331893]
[1724165819659,0.00083988,59589.0,59582.0,0.0331893]
[1724165819660,0.268515,59587.0,59582.0,0.0331893]
[1724165819868,0.13426,59586.0,59582.0,0.0331893]
[1724165820073,0.134264,59584.0,59582.0,0.0331893]
[1724165820313,0.134275,59579.0,59578.0,0.013824]
[1724165820513,0.56682798,59579.0,59578.0,0.013824]
[1724165820712,0.402825,59579.0,59578.0,0.013824]
[1724165821045,0.00822885,59586.0,59578.0,0.013824]
[1724165821211,0.00822885,59586.0,59579.0,0.0148105]
[1724165821212,0.134269,59582.0,59579.0,0.0148105]
[1724165821416,0.268535,59583.0,59579.0,0.0148105]
[1724165821599,0.268535,59583.0,59578.0,0.013824]
[1724165821600,0.134271,59581.0,59578.0,0.013824]
[1724165821797,0.004,59579.0,59578.0,0.013824]
[1724165822200,0.004,59579.0,59578.0,0.552501]
[1724165822399,0.005,59579.0,59578.0,1.092611]
[1724165822624,0.005,59579.0,59578.0,0.824056]
[1724165822829,0.001,59579.0,59578.0,0.421224]
[1724165823033,0.268527,59585.0,59578.0,0.418224]
[1724165823034,0.707229,59584.0,59578.0,0.418224]
[1724165823186,0.402825,59579.0,59578.0,0.013824]
[1724165823388,0.672375,59579.0,59578.0,0.019824]
[1724165823591,0.001,59579.0,59578.0,0.753401]
[1724165823800,0.001,59579.0,59578.0,0.82907681]
[1724165824004,0.001,59579.0,59578.0,1.09763181]
[1724165824220,0.001,59579.0,59578.0,0.619124]
[1724165824417,0.402825,59579.0,59578.0,0.208724]
[1724165824625,0.402825,59579.0,59578.0,0.013824]
[1724165824831,0.134271,59581.0,59578.0,0.013824]
[1724165825067,0.001,59579.0,59578.0,0.016824]
[1724165825269,0.001,59579.0,59578.0,0.1662117]
[1724165825721,0.001,59579.0,59578.0,0.4347667]
[1724165825927,0.0009064,59582.0,59578.0,0.4347667]
[1724165825928,0.0009064,59582.0,59581.0,0.13427]
[1724165826334,0.0009064,59582.0,59581.0,0.402811]
[1724165826510,0.0009064,59582.0,59581.0,1.272852]
[1724165827481,0.0019064,59582.0,59581.0,1.014311]
[1724165828072,0.0019064,59582.0,59581.0,0.74577]
[1724165828275,0.0019064,59582.0,59581.0,0.6115]
[1724165828575,0.0019064,59582.0,59581.0,0.74577]
[1724165829086,0.0029064,59582.0,59581.0,0.6145]
[1724165829277,0.0029064,59582.0,59581.0,0.74877]
[1724165829479,0.0029064,59582.0,59581.0,1.017311]
[1724165829920,0.0029064,59582.0,59581.0,1.285852]
[1724165830360,0.0029064,59582.0,59581.0,0.74877]
[1724165830568,0.0029064,59582.0,59581.0,0.6145]
[1724165831836,0.0029064,59582.0,59581.0,0.2066]
[1724165832246,0.0029064,59582.0,59581.0,0.34087]
[1724165832475,0.0029064,59582.0,59581.0,0.609411]
[1724165832684,0.0029064,59582.0,59581.0,1.552193]
[1724165832892,0.0029064,59582.0,59581.0,1.015111]
[1724165833300,0.0029064,59582.0,59581.0,1.283652]
[1724165833510,0.6742484,59582.0,59581.0,0.013]
[1724165833937,1.10678838,59582.0,59581.0,0.013]
[1724165834111,2.69382538,59582.0,59581.0,0.013]
[1724165834355,2.85880416,59582.0,59581.0,0.013]
[1724165834566,2.85880416,59582.0,59578.0,0.013824]
[1724165834567,1.209475,59579.0,59578.0,0.013824]
[1724165834786,2.75097798,59579.0,59578.0,0.013824]
[1724165834991,2.75197798,59579.0,59578.0,0.013824]
[1724165835213,3.02052798,59579.0,59578.0,0.013824]
[1724165835425,3.02052798,59579.0,59555.0,0.3140822]
[1724165835426,0.001,59569.0,59555.0,0.3140822]
[1724165835637,0.001,59576.0,59555.0,0.3140822]
[1724165835638,0.16400298,59568.0,59560.0,0.1815]
[1724165835843,0.29830498,59568.0,59560.0,0.1815]
[1724165836052,0.134302,59567.0,59560.0,0.1815]
[1724165836261,0.29830498,59567.0,59560.0,0.1815]